[Event "7th Sharjah Challengers 2024"]
[Site "Sharjah"]
[Date "2024.05.20"]
[Round "7.7"]
[White "Dhruva Thota"]
[Black "Rios Gomez, Cristhian Camilo"]
[Result "1/2-1/2"]
[ECO "B33"]
[WhiteElo "2351"]
[BlackElo "2472"]
[Annotator "ChessBase"]
[PlyCount "100"]
[EventDate "2024.05.13"]
[EventType "swiss"]
[EventCountry "UAE"]
[SourceTitle "playchess.com"]
[Source "ChessBase"]
[SourceQuality "1"]
[TimeControl "5400+30"]

1. e4 {[%emt 0:01:15]} c5 {[%emt 0:00:34]} 2. Nf3 {[%emt 0:00:20]} Nc6 {[%emt 0:00:25]} 3. d4 {[%emt 0:00:11]} cxd4 {[%emt 0:00:14]} 4. Nxd4 {[%emt 0:00:11]} Nf6 {[%emt 0:00:10]} 5. Nc3 {[%emt 0:00:05]} e5 {[%emt 0:00:10]} 6. Ndb5 {[%emt 0:00:11]} d6 {[%emt 0:00:08]} 7. Bg5 {[%emt 0:00:15]} a6 {[%emt 0:00:15]} 8. Na3 {[%emt 0:00:16]} b5 {[%emt 0:00:11]} 9. Nd5 {[%emt 0:00:14]} Be7 {[%emt 0:00:14]} 10. Bxf6 {[%emt 0:00:34]} Bxf6 {[%emt 0:00:08]} 11. c3 {[%emt 0:00:14]} Bg5 {[%emt 0:00:09]} 12. Nc2 {[%emt 0:00:51]} Rb8 {[%emt 0:00:10]} 13. a4 {[%emt 0:01:14]} bxa4 {[%emt 0:00:29]} 14. Ncb4 {[%emt 0:00:18]} Nxb4 {[%emt 0:00:17]} 15. cxb4 {[%emt 0:00:15]} O-O {[%emt 0:00:25]} 16. Rxa4 {[%emt 0:00:27]} a5 {[%emt 0:00:24]} 17. h4 {[%emt 0:00:09]} Bh6 {[%emt 0:00:22]} 18. b5 {[%emt 0:05:45]} Bd7 {[%emt 1:34:45]} 19. Nc3 {[%emt 0:00:12]} d5 {[%emt 0:00:00]} 20. exd5 {[%emt 0:00:09]} f5 {[%emt 0:00:00]} 21. d6 {[%emt 0:00:32]} e4 {[%emt 0:00:00]} 22. Be2 {[%emt 0:03:29]} Kh8 {[%emt 0:00:00]} 23. g3 {[%emt 0:01:41]} Qf6 {[%emt 0:00:00]} 24. O-O {[%emt 0:00:34]} g5 {[%emt 0:00:00]} 25. hxg5 {[%emt 0:00:09]} Qxg5 {[%emt 0:00:00]} 26. Kg2 {[%emt 0:00:18]} Bg7 {[%emt 0:00:00]} 27. Qd5 {[%emt 0:19:44]} Qg6 {[%emt 0:00:00]} 28. Rh1 {[%emt 0:09:19]} Bc8 {[%emt 0:00:00]} 29. Qd1 {[%emt 0:21:55]} Bb7 {[%emt 0:00:00]} 30. Bh5 {[%emt 0:08:12]} Qe6 {[%emt 0:00:00]} 31. Ne2 {[%emt 0:08:58]} Rbd8 {[%emt 0:00:00]} 32. Nf4 {[%emt 0:04:34]} Qxd6 {[%emt 0:00:00]} 33. Qxd6 {[%emt 0:01:35]} Rxd6 {[%emt 0:00:00]} 34. Rd1 {[%emt 0:02:09]} Rfd8 {[%emt 0:00:00]} 35. Rxd6 {[%emt 0:02:11]} Rxd6 {[%emt 0:00:00]} 36. Rxa5 {[%emt 0:01:40]} Bd4 {[%emt 0:00:00]} 37. b6 {[%emt 0:02:48]} e3+ {[%emt 0:00:00]} 38. Bf3 {[%emt 0:00:57]} Bxf3+ {[%emt 0:00:00]} 39. Kxf3 {[%emt 0:00:02]} exf2 {[%emt 0:00:00]} 40. Kg2 {[%emt 0:01:38]} Bxb6 {[%emt 0:00:00]} 41. Rd5 {[%emt 0:02:42]} Rc6 {[%emt 0:00:00]} 42. Rd1 {[%emt 0:01:35]} Kg7 {[%emt 0:00:00]} 43. Nd3 {[%emt 0:00:48]} Rc2 {[%emt 0:00:00]} 44. b4 {[%emt 0:00:28]} Kg6 {[%emt 0:06:12]} 45. Rf1 {[%emt 0:00:56]} h5 {[%emt 0:00:11]} 46. Nc5 {[%emt 0:00:43]} Rc4 {[%emt 0:01:30]} 47. Rxf2 {[%emt 0:00:17]} Rxb4 {[%emt 0:00:12]} 48. Rc2 {[%emt 0:00:00]} Rb1 {[%emt 0:02:05]} 49. Nd3 {[%emt 0:00:29]} Be3 {[%emt 0:01:05]} 50. Kf3 {[%emt 0:00:24]} Bg5 {[%emt 0:04:45]} 1/2-1/2

[Event "7th Sharjah Challengers 2024"]
[Site "Sharjah"]
[Date "2024.05.20"]
[Round "7.8"]
[White "Movahed, Sina"]
[Black "Anwesh, Upadhyaya"]
[Result "1-0"]
[ECO "C42"]
[WhiteElo "2464"]
[BlackElo "2345"]
[Annotator "ChessBase"]
[PlyCount "75"]
[EventDate "2024.05.13"]
[EventType "swiss"]
[EventCountry "UAE"]
[SourceTitle "playchess.com"]
[Source "ChessBase"]
[SourceQuality "1"]
[TimeControl "5400+30"]

1. e4 {[%emt 0:00:03]} e5 {[%emt 0:06:01]} 2. Nf3 {[%emt 0:00:07]} Nf6 {[%emt 0:00:28]} 3. Nxe5 {[%emt 0:00:10]} d6 {[%emt 0:00:07]} 4. Nf3 {[%emt 0:00:02]} Nxe4 {[%emt 0:00:09]} 5. d4 {[%emt 0:00:03]} d5 {[%emt 0:00:46]} 6. Bd3 {[%emt 0:00:02]} Nc6 {[%emt 0:00:47]} 7. O-O {[%emt 0:00:09]} Be7 {[%emt 0:00:05]} 8. c4 {[%emt 0:00:15]} Nb4 {[%emt 0:00:45]} 9. Be2 {[%emt 0:00:21]} O-O {[%emt 0:00:52]} 10. a3 {[%emt 0:00:02]} Nc6 {[%emt 0:00:08]} 11. cxd5 {[%emt 0:00:07]} Qxd5 {[%emt 0:00:08]} 12. Re1 {[%emt 0:00:07]} Bf5 {[%emt 0:03:14]} 13. Nc3 {[%emt 0:00:58]} Nxc3 {[%emt 0:00:23]} 14. bxc3 {[%emt 0:00:01]} Rfe8 {[%emt 0:01:42]} 15. Bf4 {[%emt 0:01:24]} Rac8 {[%emt 0:01:07]} 16. h3 {[%emt 0:00:13]} Bf6 {[%emt 0:03:45]} 17. Qa4 {[%emt 0:15:21]} Qa5 {[%emt 0:14:59]} 18. Qc4 {[%emt 0:12:00]} Be6 {[%emt 0:15:53]} 19. Qd3 {[%emt 0:01:31]} Bf5 {[%emt 0:00:35]} 20. Qd2 {[%emt 0:01:33]} h6 {[%emt 0:04:05]} 21. Bc4 {[%emt 0:11:29]} Rxe1+ {[%emt 0:05:11]} 22. Qxe1 {[%emt 0:05:37]} Bg6 {[%emt 0:07:20]} 23. Qe3 {[%emt 0:05:32]} Qa4 {[%emt 0:04:54]} 24. Bd5 {[%emt 0:09:51]} Qb5 {[%emt 0:04:25]} 25. c4 {[%emt 0:00:35]} Qb2 {[%emt 0:00:32]} 26. Rd1 {[%emt 0:01:32]} Ne7 {[%emt 0:00:23]} 27. Be4 {[%emt 0:02:02]} Bxe4 {[%emt 0:02:07]} 28. Qxe4 {[%emt 0:00:02]} Qb3 {[%emt 0:01:15]} 29. Rc1 {[%emt 0:04:21]} b6 {[%emt 0:05:29]} 30. Qb7 {[%emt 0:04:33]} Qa4 {[%emt 0:00:20]} 31. d5 {[%emt 0:02:01]} Qd7 {[%emt 0:07:59]} 32. Re1 {[%emt 0:04:52]} Qd8 {[%emt 0:02:35]} 33. Qxa7 {[%emt 0:00:51]} b5 {[%emt 0:00:08]} 34. cxb5 {[%emt 0:03:00]} Qxd5 {[%emt 0:02:47]} 35. a4 {[%emt 0:01:42]} Ra8 {[%emt 0:01:25]} 36. Qxc7 {[%emt 0:00:16]} Rxa4 {[%emt 0:00:08]} 37. b6 {[%emt 0:01:18]} Nc6 {[%emt 0:01:51]} 38. b7 {[%emt 0:00:50]} 1-0

[Event "7th Sharjah Challengers 2024"]
[Site "Sharjah"]
[Date "2024.05.20"]
[Round "7.9"]
[White "Mohammad Fahad, Rahman"]
[Black "Kanter, Eduard"]
[Result "1-0"]
[ECO "B77"]
[WhiteElo "2435"]
[BlackElo "2344"]
[Annotator "ChessBase"]
[PlyCount "69"]
[EventDate "2024.05.13"]
[EventType "swiss"]
[EventCountry "UAE"]
[SourceTitle "playchess.com"]
[Source "ChessBase"]
[SourceQuality "1"]
[TimeControl "5400+30"]

1. e4 {[%emt 0:00:10]} c5 {[%emt 0:00:13]} 2. Nf3 {[%emt 0:00:20]} d6 {[%emt 0:00:14]} 3. d4 {[%emt 0:00:18]} cxd4 {[%emt 0:00:07]} 4. Nxd4 {[%emt 0:00:06]} Nf6 {[%emt 0:00:07]} 5. Nc3 {[%emt 0:00:18]} g6 {[%emt 0:00:24]} 6. Be3 {[%emt 0:00:52]} Bg7 {[%emt 0:00:07]} 7. f3 {[%emt 0:00:30]} Nc6 {[%emt 0:00:15]} 8. Qd2 {[%emt 0:01:49]} O-O {[%emt 0:00:12]} 9. Bc4 {[%emt 0:00:43]} Nxd4 {[%emt 0:01:49]} 10. Bxd4 {[%emt 0:00:09]} Be6 {[%emt 0:00:04]} 11. Bxe6 {[%emt 0:02:30]} fxe6 {[%emt 0:01:46]} 12. O-O-O {[%emt 0:00:15]} Qa5 {[%emt 0:00:07]} 13. Kb1 {[%emt 0:02:23]} Nd7 {[%emt 0:03:21]} 14. Bxg7 {[%emt 0:04:06]} Kxg7 {[%emt 0:00:06]} 15. f4 {[%emt 0:01:53]} Nb6 {[%emt 0:09:54]} 16. h4 {[%emt 0:18:28]} Rac8 {[%emt 0:06:37]} 17. Rh3 {[%emt 0:03:17]} Nc4 {[%emt 0:12:24]} 18. Qc1 {[%emt 0:00:55]} b5 {[%emt 0:21:17]} 19. h5 {[%emt 0:04:44]} b4 {[%emt 0:15:28]} 20. Ne2 {[%emt 0:17:14]} gxh5 {[%emt 0:11:24]} 21. f5 {[%emt 0:00:47]} Kh8 {[%emt 0:01:41]} 22. Nf4 {[%emt 0:07:06]} Rf7 {[%emt 0:08:17]} 23. Ng6+ {[%emt 0:03:28]} hxg6 {[%emt 0:00:59]} 24. fxg6 {[%emt 0:00:01]} Rg7 {[%emt 0:01:01]} 25. Qh6+ {[%emt 0:07:21]} Kg8 {[%emt 0:00:01]} 26. Rxh5 {[%emt 0:00:09]} Qxh5 {[%emt 0:00:03]} 27. Qxh5 {[%emt 0:00:06]} Ne5 {[%emt 0:00:08]} 28. Rh1 {[%emt 0:00:20]} Nxg6 {[%emt 0:00:15]} 29. Qh3 {[%emt 0:00:07]} Kf7 {[%emt 0:02:10]} 30. Rf1+ {[%emt 0:00:15]} Ke8 {[%emt 0:00:01]} 31. Qxe6 {[%emt 0:01:03]} Rc5 {[%emt 0:00:05]} 32. Qg4 {[%emt 0:01:54]} Kd8 {[%emt 0:03:05]} 33. b3 {[%emt 0:00:29]} Re5 {[%emt 0:00:17]} 34. Rh1 {[%emt 0:01:14]} Kc7 {[%emt 0:00:15]} 35. Rh6 {[%emt 0:00:18]} 1-0

[Event "7th Sharjah Challengers 2024"]
[Site "Sharjah"]
[Date "2024.05.20"]
[Round "7.10"]
[White "Suyarov, Mukhammadzokhid"]
[Black "Hakobyan, Erik"]
[Result "1-0"]
[ECO "B32"]
[WhiteElo "2431"]
[BlackElo "2340"]
[Annotator "ChessBase"]
[PlyCount "95"]
[EventDate "2024.05.13"]
[EventType "swiss"]
[EventCountry "UAE"]
[SourceTitle "playchess.com"]
[Source "ChessBase"]
[SourceQuality "1"]
[TimeControl "5400+30"]

1. e4 {[%emt 0:00:10]} c5 {[%emt 0:00:08]} 2. Nf3 {[%emt 0:00:15]} Nc6 {[%emt 0:00:09]} 3. d4 {[%emt 0:00:10]} cxd4 {[%emt 0:00:08]} 4. Nxd4 {[%emt 0:00:13]} e5 {[%emt 0:00:19]} 5. Nb5 {[%emt 0:03:49]} d6 {[%emt 0:00:40]} 6. c4 {[%emt 0:00:23]} g6 {[%emt 0:00:06]} 7. Be2 {[%emt 0:00:46]} a6 {[%emt 0:01:19]} 8. N5c3 {[%emt 0:00:19]} Bg7 {[%emt 0:01:26]} 9. O-O {[%emt 0:00:30]} Be6 {[%emt 0:03:25]} 10. Be3 {[%emt 0:03:23]} Nge7 {[%emt 0:03:29]} 11. Nd2 {[%emt 0:01:11]} Nd4 {[%emt 0:04:22]} 12. Bg4 {[%emt 0:04:27]} Bxg4 {[%emt 0:06:40]} 13. Qxg4 {[%emt 0:00:27]} Nc2 {[%emt 0:05:22]} 14. Rad1 {[%emt 0:07:03]} Nxe3 {[%emt 0:00:50]} 15. fxe3 {[%emt 0:00:20]} Qb6 {[%emt 0:04:59]} 16. Qf3 {[%emt 0:02:41]} O-O {[%emt 0:01:13]} 17. Nb3 {[%emt 0:02:23]} Rac8 {[%emt 0:03:06]} 18. Qe2 {[%emt 0:04:37]} Qb4 {[%emt 0:07:40]} 19. c5 {[%emt 0:07:22]} dxc5 {[%emt 0:11:38]} 20. Rd7 {[%emt 0:01:20]} c4 {[%emt 0:05:13]} 21. a3 {[%emt 0:00:24]} Qb6 {[%emt 0:00:22]} 22. Rxe7 {[%emt 0:05:02]} cxb3 {[%emt 0:00:58]} 23. Nd5 {[%emt 0:00:33]} Qb5 {[%emt 0:06:04]} 24. Qxb5 {[%emt 0:05:36]} axb5 {[%emt 0:00:06]} 25. Rxb7 {[%emt 0:00:39]} Rc2 {[%emt 0:02:40]} 26. Rb1 {[%emt 0:01:44]} Rc5 {[%emt 0:00:04]} 27. g4 {[%emt 0:00:08]} h6 {[%emt 0:07:33]} 28. Rf1 {[%emt 0:02:32]} Rc4 {[%emt 0:02:17]} 29. Nc3 {[%emt 0:01:50]} f5 {[%emt 0:02:49]} 30. gxf5 {[%emt 0:01:37]} gxf5 {[%emt 0:00:35]} 31. Rxb5 {[%emt 0:00:20]} f4 {[%emt 0:00:16]} 32. Rxb3 {[%emt 0:03:13]} fxe3 {[%emt 0:02:51]} 33. Re1 {[%emt 0:07:03]} Rf3 {[%emt 0:00:23]} 34. Kg2 {[%emt 0:00:50]} Rf2+ {[%emt 0:00:06]} 35. Kh3 {[%emt 0:04:20]} Rf3+ {[%emt 0:05:51]} 36. Kg4 {[%emt 0:03:05]} Rf2 {[%emt 0:00:20]} 37. Kg3 {[%emt 0:02:51]} Rd4 {[%emt 0:02:47]} 38. Nd1 {[%emt 0:01:07]} Rfd2 {[%emt 0:01:32]} 39. Nxe3 {[%emt 0:00:30]} Rxe4 {[%emt 0:00:03]} 40. Rc1 {[%emt 0:00:33]} Rf4 {[%emt 0:03:01]} 41. Rc8+ {[%emt 0:02:00]} Bf8 {[%emt 0:01:12]} 42. Ng4 {[%emt 0:00:56]} h5 {[%emt 0:01:54]} 43. Nxe5 {[%emt 0:00:53]} Rff2 {[%emt 0:06:04]} 44. Rbb8 {[%emt 0:01:29]} Kg7 {[%emt 0:00:00]} 45. Rb7+ {[%emt 0:02:13]} Kg8 {[%emt 0:00:00]} 46. h3 {[%emt 0:05:43]} Rg2+ {[%emt 0:00:00]} 47. Kh4 {[%emt 0:01:29]} Rge2 {[%emt 0:01:01]} 48. Kxh5 {[%emt 0:14:01]} 1-0

[Event "7th Sharjah Challengers 2024"]
[Site "Sharjah"]
[Date "2024.05.20"]
[Round "7.11"]
[White "Kanyamarala, Tarun"]
[Black "Wang, Yanbin"]
[Result "0-1"]
[ECO "A80"]
[WhiteElo "2302"]
[BlackElo "2415"]
[Annotator "ChessBase"]
[PlyCount "56"]
[EventDate "2024.05.13"]
[EventType "swiss"]
[EventCountry "UAE"]
[SourceTitle "playchess.com"]
[Source "ChessBase"]
[SourceQuality "1"]
[TimeControl "5400+30"]

1. d4 {[%emt 0:00:04]} f5 {[%emt 0:00:05]} 2. Nc3 {[%emt 0:01:03]} Nf6 {[%emt 0:00:16]} 3. Bf4 {[%emt 0:00:18]} e6 {[%emt 0:02:34]} 4. g4 {[%emt 0:00:17]} Bb4 {[%emt 0:02:33]} 5. gxf5 {[%emt 0:04:25]} exf5 {[%emt 0:00:24]} 6. Qd3 {[%emt 0:04:10]} Ne4 {[%emt 0:02:38]} 7. Nf3 {[%emt 0:04:13]} d5 {[%emt 0:17:15]} 8. Rg1 {[%emt 0:05:03]} Qe7 {[%emt 0:03:37]} 9. Nd2 {[%emt 0:06:54]} Bxc3 {[%emt 0:15:24]} 10. bxc3 {[%emt 0:00:11]} O-O {[%emt 0:02:26]} 11. Nxe4 {[%emt 0:22:01]} fxe4 {[%emt 0:00:28]} 12. Qg3 {[%emt 0:00:06]} Rf7 {[%emt 0:00:21]} 13. Rb1 {[%emt 0:03:00]} b6 {[%emt 0:02:49]} 14. e3 {[%emt 0:01:32]} Ba6 {[%emt 0:05:28]} 15. Qg5 {[%emt 0:05:35]} Bxf1 {[%emt 0:01:45]} 16. Kxf1 {[%emt 0:09:37]} Qd7 {[%emt 0:00:53]} 17. c4 {[%emt 0:06:53]} dxc4 {[%emt 0:00:58]} 18. Rb5 {[%emt 0:03:30]} c5 {[%emt 0:01:56]} 19. Qg4 {[%emt 0:11:46]} cxd4 {[%emt 0:05:03]} 20. Qh5 {[%emt 0:03:46]} Nc6 {[%emt 0:02:38]} 21. Rd5 {[%emt 0:00:13]} Qe8 {[%emt 0:00:24]} 22. Rg4 {[%emt 0:02:01]} d3 {[%emt 0:01:53]} 23. cxd3 {[%emt 0:01:45]} c3 {[%emt 0:01:42]} 24. Rh4 {[%emt 0:00:33]} g6 {[%emt 0:00:21]} 25. Qd1 {[%emt 0:00:12]} Nb4 {[%emt 0:00:35]} 26. Re5 {[%emt 0:00:18]} Qd8 {[%emt 0:00:05]} 27. Rxe4 {[%emt 0:00:44]} c2 {[%emt 0:00:09]} 28. Qd2 {[%emt 0:00:12]} Qxd3+ {[%emt 0:00:15]} 0-1

[Event "7th Sharjah Challengers 2024"]
[Site "Sharjah"]
[Date "2024.05.20"]
[Round "7.12"]
[White "Abdulrahim, Salem"]
[Black "Kazarian, Anna-Maja"]
[Result "0-1"]
[ECO "C06"]
[WhiteElo "1824"]
[BlackElo "2182"]
[Annotator "ChessBase"]
[PlyCount "76"]
[EventDate "2024.05.13"]
[EventType "swiss"]
[EventCountry "UAE"]
[SourceTitle "playchess.com"]
[Source "ChessBase"]
[SourceQuality "1"]
[TimeControl "5400+30"]

1. e4 {[%emt 0:00:04]} e6 {[%emt 0:00:05]} 2. d4 {[%emt 0:00:05]} d5 {[%emt 0:00:04]} 3. Nd2 {[%emt 0:01:14]} Be7 {[%emt 0:00:10]} 4. Ngf3 {[%emt 0:00:14]} Nf6 {[%emt 0:00:28]} 5. e5 {[%emt 0:00:07]} Nfd7 {[%emt 0:00:04]} 6. Bd3 {[%emt 0:00:16]} c5 {[%emt 0:00:05]} 7. c3 {[%emt 0:00:05]} Nc6 {[%emt 0:01:55]} 8. O-O {[%emt 0:00:33]} Qb6 {[%emt 0:02:06]} 9. dxc5 {[%emt 0:02:02]} Bxc5 {[%emt 0:01:55]} 10. Nb3 {[%emt 0:09:17]} Ndxe5 {[%emt 0:05:09]} 11. Nxe5 {[%emt 0:00:47]} Nxe5 {[%emt 0:00:05]} 12. Nxc5 {[%emt 0:00:19]} Qxc5 {[%emt 0:00:05]} 13. Bc2 {[%emt 0:00:22]} Ng6 {[%emt 0:01:52]} 14. Be3 {[%emt 0:03:57]} Qc7 {[%emt 0:05:58]} 15. h4 {[%emt 0:05:57]} Bd7 {[%emt 0:03:38]} 16. a4 {[%emt 0:08:12]} Nxh4 {[%emt 0:04:38]} 17. Qd4 {[%emt 0:04:18]} Ng6 {[%emt 0:03:08]} 18. Qxg7 {[%emt 0:01:09]} O-O-O {[%emt 0:01:12]} 19. Qd4 {[%emt 0:00:24]} a6 {[%emt 0:08:01]} 20. Bxg6 {[%emt 0:10:01]} e5 {[%emt 0:16:55]} 21. Qa7 {[%emt 0:03:38]} hxg6 {[%emt 0:09:11]} 22. Bb6 {[%emt 0:00:41]} Qb8 {[%emt 0:00:54]} 23. Qxb8+ {[%emt 0:00:08]} Kxb8 {[%emt 0:00:02]} 24. Bxd8 {[%emt 0:00:07]} Rxd8 {[%emt 0:00:02]} 25. f3 {[%emt 0:01:22]} Kc7 {[%emt 0:00:35]} 26. Kf2 {[%emt 0:00:19]} Kd6 {[%emt 0:00:26]} 27. Rh1 {[%emt 0:00:30]} Rc8 {[%emt 0:01:10]} 28. Rh4 {[%emt 0:01:08]} a5 {[%emt 0:01:41]} 29. Ke3 {[%emt 0:03:38]} f5 {[%emt 0:11:13]} 30. Rh7 {[%emt 0:09:17]} f4+ {[%emt 0:01:33]} 31. Kd2 {[%emt 0:00:27]} e4 {[%emt 0:05:37]} 32. Rg7 {[%emt 0:09:06]} Bf5 {[%emt 0:05:53]} 33. Rxb7 {[%emt 0:00:53]} Rh8 {[%emt 0:01:09]} 34. Rg1 {[%emt 0:02:26]} e3+ {[%emt 0:03:51]} 35. Ke2 {[%emt 0:02:48]} d4 {[%emt 0:00:09]} 36. cxd4 {[%emt 0:22:39]} Rc8 {[%emt 0:00:07]} 37. Rd1 {[%emt 0:00:00]} Rc2+ {[%emt 0:00:20]} 38. Kf1 {[%emt 0:00:00]} e2+ {[%emt 0:00:07]} 0-1